fUSD/lending_fUSD_20241225
["ID","MTS","AMOUNT","RATE_DAILY","PERIOD"]
[346625067,1735129839242,-695.8,0.00010788,2]
[346625068,1735129839252,-500.0,0.00010788,2]
[346625069,1735129839263,-500.0,0.00010788,2]
[346625070,1735129839272,-500.0,0.00010788,2]
[346625071,1735129839282,-500.0,0.00010788,2]
[346625072,1735129839291,-500.0,0.00010788,2]
[346625073,1735129839301,-556.71,0.00010788,2]
[346625074,1735129839311,-500.00693924,0.00010788,2]
[346625075,1735129839320,-500.0,0.00010788,2]
[346625076,1735129839329,-500.0,0.00010788,2]
[346625077,1735129839338,-500.0,0.00010788,2]
[346625078,1735129839348,-500.0,0.00010788,2]
[346625079,1735129839356,-501.30707147,0.00010788,2]
[346625080,1735129839366,-500.0,0.00010788,2]
[346625081,1735129839375,-500.0,0.00010788,2]
[346625082,1735129839384,-155.988333,0.00010788,2]
[346625083,1735129839393,-153.753901,0.00010788,2]
[346625084,1735129839403,-500.0,0.00010788,2]
[346625085,1735129839412,-590.250614,0.00010788,2]
[346625086,1735129839421,-500.0,0.00010788,2]
[346625087,1735129839430,-500.0,0.00010788,2]
[346625088,1735129839439,-513.3630191,0.00010788,2]
[346625089,1735129839449,-500.0,0.00010788,2]
[346625090,1735129839459,-501.64827215,0.00010788,2]
[346625091,1735129839468,-678.90238,0.00010788,2]
[346625092,1735129839478,-669.78,0.00010788,2]
[346625093,1735129839487,-500.0,0.00010788,2]
[346625094,1735129839497,-500.0,0.00010788,2]
[346625095,1735129839508,-500.0,0.00010788,2]
[346625096,1735129839517,-500.0,0.00010788,2]
[346625097,1735129839526,-500.0,0.00010788,2]
[346625098,1735129839535,-500.0,0.00010788,2]
[346625099,1735129839545,-507.19004196,0.00010788,2]
[346625100,1735129839558,-500.0,0.00010788,2]
[346625101,1735129839567,-500.0,0.00010788,2]
[346625102,1735129839577,-500.0,0.00010788,2]
[346625103,1735129839587,-500.0,0.00010788,2]
[346625104,1735129839596,-500.0,0.00010788,2]
[346625105,1735129839606,-500.0,0.00010788,2]
[346625106,1735129839615,-500.0,0.00010788,2]
[346625107,1735129839625,-500.0,0.00010788,2]
[346625108,1735129839635,-500.0,0.00010788,2]
[346625109,1735129839643,-582.51,0.00010788,2]
[346625110,1735129839653,-500.0,0.00010788,2]
[346625111,1735129839661,-500.0,0.00010788,2]
[346625112,1735129839671,-500.0,0.00010788,2]
[346625113,1735129839680,-500.0,0.00010788,2]
[346625114,1735129839689,-500.0,0.00010788,2]
[346625115,1735129839698,-500.0,0.00010788,2]
[346625116,1735129839707,-500.0,0.00010788,2]
[346625117,1735129839717,-500.0,0.00010788,2]
[346625118,1735129839726,-500.0,0.00010788,2]
[346625119,1735129839735,-380.10065655,0.00010788,2]
[346625120,1735129839745,-500.0,0.00010788,2]
[346625121,1735129839758,-500.0,0.00010788,2]
[346625122,1735129839767,-500.0,0.00010788,2]
[346625123,1735129839777,-373.22861067,0.00010788,2]
[346625124,1735129839786,-615.19,0.00010788,2]
[346625125,1735129839795,-500.0,0.00010788,2]
[346625127,1735129839806,-500.0,0.00010788,2]
[346625129,1735129839815,-500.0,0.00010788,2]
[346625131,1735129839825,-500.0,0.00010788,2]
[346625133,1735129839834,-500.0,0.00010788,2]
[346625135,1735129839843,-500.0,0.00010788,2]
[346625137,1735129839852,-500.0,0.00010788,2]
[346625139,1735129839861,-500.0,0.00010788,2]
[346625141,1735129839871,-500.0,0.00010788,2]
[346625142,1735129839881,-500.0,0.00010788,2]
[346625144,1735129839890,-622.83,0.00010788,2]
[346625146,1735129839899,-500.0,0.00010788,2]
[346625147,1735129839909,-500.0,0.00010788,2]
[346625148,1735129839919,-626.73,0.00010788,2]
[346625149,1735129839928,-500.0,0.00010788,2]
[346625150,1735129839937,-500.0,0.00010788,2]
[346625151,1735129839946,-500.0,0.00010788,2]
[346625152,1735129839955,-500.0,0.00010788,2]
[346625153,1735129839965,-500.0,0.00010788,2]
[346625154,1735129839975,-759.54,0.00010788,2]
[346625155,1735129839985,-500.0,0.00010788,2]
[346625156,1735129839995,-500.0,0.00010788,2]
[346625157,1735129840004,-500.0,0.00010788,2]
[346625158,1735129840013,-500.0,0.00010788,2]
[346625159,1735129840023,-500.0,0.00010788,2]
[346625161,1735129840033,-500.0,0.00010788,2]
[346625162,1735129840042,-500.0,0.00010788,2]
[346625163,1735129840052,-598.48,0.00010788,2]
[346625164,1735129840062,-500.0,0.00010788,2]
[346625165,1735129840071,-500.0,0.00010788,2]
[346625166,1735129840081,-551.52,0.00010788,2]
[346625167,1735129840090,-485.01101985,0.00010788,2]
[346625168,1735129840128,-115.42898015,0.00010788,2]
[346625169,1735129840137,-223.16644201,0.00010788,2]
[346625170,1735129840601,-500.0,0.00010787,2]
[346625171,1735129840610,-84.22213024,0.00010788,2]
[346625172,1735129840622,-192.61142775,0.00010788,2]
[346625173,1735129840632,-104.86857015,0.00010788,2]
[346625174,1735129840644,-395.13142985,0.00010788,2]
[346625175,1735129840654,-155.988333,0.00010788,2]
[346625176,1735129840663,-6.71823715,0.00010788,2]
[346625177,1735129840674,-147.03566385,0.00010788,2]
[346625178,1735129840683,-318.53810312,0.00010788,2]
[346625179,1735129840694,-181.46189688,0.00010788,2]
[346625180,1735129840704,-160.488641,0.00010788,2]
[346625181,1735129840713,-167.76613271,0.00010788,2]
[346625182,1735129840724,-384.644286,0.00010788,2]
[346625183,1735129840747,-127.63958129,0.00010788,2]
[346625184,1735129840757,-426.66632701,0.00010788,2]
[346625186,1735129840768,-73.33367299,0.00010788,2]
[346625187,1735129840778,-820.05,0.00010788,2]
[346625188,1735129840787,-748.85,0.00010788,2]
[346625189,1735129840796,-174.162094,0.00010788,2]
[346625190,1735129840806,-967.1,0.00010788,2]
[346625191,1735129840815,-1958.77,0.00010788,2]
[346625192,1735129840824,-1395.2,0.00010788,2]
[346625193,1735129840834,-746.37,0.00010788,2]
[346625194,1735129840843,-500.0,0.00010788,2]
[346625195,1735129840852,-500.0,0.00010788,2]
[346625196,1735129840861,-972.02,0.00010788,2]
[346625197,1735129840870,-500.0,0.00010788,2]
[346625198,1735129840879,-735.02,0.00010788,2]
[346625199,1735129840889,-500.0,0.00010788,2]
[346625200,1735129840897,-949.32,0.00010788,2]
[346625201,1735129840906,-500.0,0.00010788,2]
[346625202,1735129840915,-500.0,0.00010788,2]
[346625203,1735129840924,-1734.52,0.00010788,2]
[346625204,1735129840933,-500.0,0.00010788,2]
[346625205,1735129840943,-700.51,0.00010788,2]
[346625206,1735129840952,-500.0,0.00010788,2]
[346625207,1735129840961,-3750.44,0.00010788,2]
[346625208,1735129840970,-405.71883331,0.00010788,2]
[346625209,1735129840981,-94.28116669,0.00010788,2]
[346625210,1735129840990,-907.42828751,0.00010788,2]
[346625211,1735129841004,-500.0,0.00010788,2]
[346625212,1735129841031,-317.98769101,0.00010788,2]
[346625213,1735129841046,-2034.52399846,0.00010788,2]
[346625214,1735129841059,-1306.55002302,0.00010788,2]
[346625215,1735129841068,-500.0,0.00010788,2]
[346625216,1735129841077,-500.0,0.00010788,2]
[346625217,1735129841086,-51.58074001,0.00010788,2]
[346625218,1735129841098,-448.41925999,0.00010788,2]
[346625219,1735129841107,-2851.58074001,0.00010788,2]
[346625220,1735129841119,-36.37925999,0.00010788,2]
[346625221,1735129841128,-265.5427116,0.00010788,2]
[346625222,1735129841140,-234.4572884,0.00010788,2]
[346625223,1735129841149,-819.61,0.00010788,2]
[346625224,1735129841158,-553.29,0.00010788,2]
[346625225,1735129841168,-197.6427121,0.00010788,2]
[346625226,1735129841179,-277.209,0.00010788,2]
[346625227,1735129841191,-25.1482879,0.00010788,2]
[346625228,1735129841200,-315.2509821,0.00010788,2]
[346625229,1735129841219,-184.7490179,0.00010788,2]
[346625230,1735129841228,-127.5669896,0.00010788,2]
[346625231,1735129841240,-372.4330104,0.00010788,2]
[346625232,1735129841251,-1028.04638175,0.00010788,2]
[346625233,1735129841263,-109.06361825,0.00010788,2]
[346625234,1735129841272,-220.66276606,0.00010788,2]
[346625235,1735129841419,-279.33723394,0.00010788,2]
[346625236,1735129841428,-17.70706561,0.00010788,2]
[346625237,1735129841456,-500.0,0.00010787,2]
[346625238,1735129841465,-1126.31293439,0.00010788,2]
[346625239,1735129841474,-500.0,0.00010788,2]
[346625240,1735129841483,-3623.68,0.00010788,2]
[346625241,1735129841492,-335.20148289,0.00010788,2]
[346625242,1735129841503,-389.5246874,0.00010788,2]
[346625243,1735129841513,-915.0,0.00010788,2]
[346625244,1735129841522,-500.0,0.00010788,2]
[346625245,1735129841531,-500.0,0.00010788,2]
[346625246,1735129841541,-1244.19,0.00010788,2]
[346625247,1735129841551,-500.0,0.00010788,2]
[346625248,1735129841561,-500.0,0.00010788,2]
[346625249,1735129841571,-258.62982251,0.00010788,2]
[346625250,1735129841581,-500.0,0.00010788,2]
[346625251,1735129841591,-500.0,0.00010788,2]
[346625252,1735129841602,-223.64195323,0.00010788,2]
[346625253,1735129841613,-2621.09804677,0.00010788,2]
[346625254,1735129841622,-500.0,0.00010788,2]
[346625255,1735129841631,-500.0,0.00010788,2]
[346625256,1735129841641,-756.95,0.00010788,2]
[346625257,1735129841650,-292.46988202,0.00010788,2]
[346625258,1735129841659,-500.0,0.00010788,2]
[346625259,1735129841669,-500.0,0.00010788,2]
[346625260,1735129841678,-1204.06,0.00010788,2]
[346625261,1735129841687,-500.0,0.00010788,2]
[346625262,1735129841696,-500.0,0.00010788,2]
[346625263,1735129841706,-875.36,0.00010788,2]
[346625264,1735129841715,-2061.1,0.00010788,2]
[346625265,1735129841726,-500.0,0.00010788,2]
[346625266,1735129841736,-500.0,0.00010788,2]
[346625267,1735129841746,-500.0,0.00010788,2]
[346625268,1735129841756,-927.19,0.00010788,2]
[346625269,1735129841765,-999.24,0.00010788,2]
[346625270,1735129841775,-500.0,0.00010788,2]
[346625271,1735129841784,-856.68,0.00010788,2]
[346625272,1735129841794,-500.0,0.00010788,2]
[346625273,1735129841804,-500.0,0.00010788,2]
[346625274,1735129841813,-1106.69,0.00010788,2]
[346625275,1735129841824,-3577.49,0.00010788,2]
[346625276,1735129841834,-621.88,0.00010788,2]
[346625277,1735129841845,-2020.17,0.00010788,2]
[346625278,1735129841855,-500.0,0.00010788,2]
[346625279,1735129841864,-2323.11,0.00010788,2]
[346625280,1735129841874,-2014.45,0.00010788,2]
[346625281,1735129841884,-1743.28,0.00010788,2]
[346625282,1735129841892,-389.43207121,0.00010788,2]
[346625283,1735129841965,-110.56792879,0.00010788,2]
[346625284,1735129841975,-156.93315347,0.00010788,2]
[346625285,1735129841986,-343.06684653,0.00010788,2]
[346625286,1735129841997,-500.0,0.00010788,2]
[346625287,1735129842007,-500.0,0.00010788,2]
[346625288,1735129842016,-500.0,0.00010788,2]
[346625289,1735129842025,-500.0,0.00010788,2]
[346625290,1735129842034,-500.0,0.00010788,2]
[346625291,1735129842043,-375.45429556,0.00010788,2]
[346625292,1735129842056,-394.04182981,0.00010788,2]
[346625300,1735129843009,-500.0,0.00010787,2]
[346625301,1735129843021,-500.0,0.00010787,2]
[346625302,1735129843036,-164.90682513,0.00010787,2]
[346625303,1735129843047,-335.09317487,0.00010787,2]
[346625304,1735129843056,-498.78670224,0.00010787,2]
[346625305,1735129843130,-1.21329776,0.00010787,2]
[346625306,1735129843139,-2344.62387463,0.00010788,2]
[346625307,1735129843148,-500.0,0.00010788,2]
[346625308,1735129843158,-500.0,0.00010788,2]
[346625309,1735129843167,-500.0,0.00010788,2]
[346625310,1735129843176,-102.52254914,0.00010788,2]
[346625318,1735129843408,-628.67745086,0.00010788,2]
[346625320,1735129843418,-500.0,0.00010788,2]
[346625323,1735129843427,-1121.78,0.00010788,2]
[346625325,1735129843436,-755.07,0.00010788,2]
[346625326,1735129843446,-927.21976618,0.00010788,2]
[346625329,1735129843457,-113.84023382,0.00010788,2]
[346625331,1735129843466,-500.0,0.00010788,2]
[346625333,1735129843475,-3808.41715828,0.00010788,2]
[346625337,1735129843505,-829.1328602,0.00010788,2]
[346625339,1735129843516,-326.74154505,0.00010788,2]
[346625584,1735129846011,-777.741585,0.00010787,2]
[346625587,1735129846025,-414.838415,0.00010787,2]
[346625589,1735129846034,-500.0,0.00010787,2]
[346625591,1735129846044,-500.0,0.00010787,2]
[346625593,1735129846053,-500.0,0.00010787,2]
[346625595,1735129846063,-1844.709785,0.00010788,2]
[346625597,1735129846079,-292.62865147,0.00010788,2]
[346625599,1735129846089,-500.0,0.00010788,2]
[346625601,1735129846099,-500.0,0.00010788,2]
[346625603,1735129846108,-878.32,0.00010788,2]
[346625605,1735129846118,-500.0,0.00010788,2]
[346625607,1735129846127,-500.0,0.00010788,2]
[346625609,1735129846137,-500.0,0.00010788,2]
[346625612,1735129846146,-500.0,0.00010788,2]
[346625614,1735129846156,-500.0,0.00010788,2]
[346625616,1735129846165,-500.0,0.00010788,2]
[346625618,1735129846175,-500.0,0.00010788,2]
[346625620,1735129846184,-500.0,0.00010788,2]
[346625622,1735129846193,-500.0,0.00010788,2]
[346625624,1735129846203,-878.09,0.00010788,2]
[346625626,1735129846212,-1801.00579791,0.00010788,2]
[346625628,1735129846229,-84.50420209,0.00010788,2]
[346625630,1735129846238,-500.0,0.00010788,2]
[346625632,1735129846248,-500.0,0.00010788,2]
[346625634,1735129846260,-425.15715737,0.00010788,2]
[346625639,1735129846300,-500.0,0.00010787,2]
[346625641,1735129846311,-74.84284263,0.00010788,2]
[346625643,1735129846321,-500.0,0.00010788,2]
[346625645,1735129846330,-122.10574517,0.00010788,2]
[346625648,1735129846342,-259.91533532,0.00010788,2]
[346625650,1735129846354,-744.44891951,0.00010788,2]
[346625652,1735129846363,-108.60108049,0.00010788,2]
[346625654,1735129846375,-391.39891951,0.00010788,2]
[346625656,1735129846385,-500.0,0.00010788,2]
[346625658,1735129846394,-1174.53,0.00010788,2]
[346625660,1735129846404,-500.0,0.00010788,2]
[346625662,1735129846413,-500.0,0.00010788,2]
[346625664,1735129846423,-873.98,0.00010788,2]
[346625666,1735129846432,-246.77467625,0.00010788,2]
[346625668,1735129846442,-500.0,0.00010788,2]
[346625670,1735129846451,-1004.93020423,0.00010788,2]
[346625673,1735129846469,-346.52979577,0.00010788,2]
[346625675,1735129846478,-500.0,0.00010788,2]
[346625677,1735129846487,-162.56426773,0.00010788,2]
[346625679,1735129846499,-629.33573227,0.00010788,2]
[346625681,1735129846515,-500.0,0.00010788,2]
[346625683,1735129846524,-518.62,0.00010788,2]
[346625685,1735129846533,-631.55,0.00010788,2]
[346625687,1735129846543,-500.0,0.00010788,2]
[346625690,1735129846554,-960.06,0.00010788,2]
[346625692,1735129846566,-500.0,0.00010788,2]
[346625694,1735129846575,-500.0,0.00010788,2]
[346625695,1735129846585,-500.0,0.00010788,2]
[346625697,1735129846595,-500.0,0.00010788,2]
[346625699,1735129846605,-601.52,0.00010788,2]
[346625701,1735129846614,-1191.96,0.00010788,2]
[346625703,1735129846623,-500.0,0.00010788,2]
[346625705,1735129846634,-500.0,0.00010788,2]
[346625707,1735129846644,-335.43833571,0.00010788,2]
[346625709,1735129846653,-589.4,0.00010788,2]
[346625711,1735129846662,-500.0,0.00010788,2]
[346625713,1735129846672,-500.0,0.00010788,2]
[346625715,1735129846682,-500.0,0.00010788,2]
[346625718,1735129846691,-2230.88,0.00010788,2]
[346625720,1735129846701,-500.0,0.00010788,2]
[346625722,1735129846711,-500.0,0.00010788,2]
[346625724,1735129846721,-500.0,0.00010788,2]
[346625726,1735129846730,-575.43,0.00010788,2]
[346625728,1735129846739,-500.0,0.00010788,2]
[346625730,1735129846748,-2365.2,0.00010788,2]
[346625732,1735129846760,-500.0,0.00010788,2]
[346625734,1735129846770,-500.0,0.00010788,2]
[346625736,1735129846779,-410.81926677,0.00010789,2]
[346625738,1735129846788,-525.70088984,0.00010789,2]
[346625740,1735129846798,-500.0,0.00010789,2]
[346625742,1735129846807,-443.13009904,0.00010789,2]
[346625744,1735129846817,-502.61697551,0.00010789,2]
[346625746,1735129846826,-500.0,0.00010789,2]
[346625748,1735129846836,-254.79506545,0.00010789,2]
[346625750,1735129846845,-523.83419459,0.00010789,2]
[346625752,1735129846856,-393.03619184,0.00010789,2]
[346625754,1735129846865,-504.17916388,0.00010789,2]
[346625756,1735129846874,-500.0,0.00010789,2]
[346625758,1735129846883,-500.0,0.00010789,2]
[346625760,1735129846893,-500.0,0.00010789,2]
[346625762,1735129846902,-500.0,0.00010789,2]
[346625764,1735129846911,-500.0,0.00010789,2]
[346625766,1735129846920,-500.0,0.00010789,2]
[346625768,1735129846930,-154.80747412,0.00010789,2]
[346625770,1735129846939,-500.0,0.00010789,2]
[346625772,1735129846948,-500.0,0.00010789,2]
[346625774,1735129846957,-500.0,0.00010789,2]
[346625776,1735129846967,-500.0,0.00010789,2]
[346625778,1735129846976,-500.0,0.00010789,2]
[346625780,1735129846986,-511.01586152,0.00010789,2]
[346625782,1735129846995,-500.0,0.00010789,2]
[346625784,1735129847006,-98.20308168,0.00010789,2]
[346625786,1735129847019,-401.79691832,0.00010789,2]
[346625788,1735129847028,-517.60660868,0.00010789,2]
[346625790,1735129847037,-500.0,0.00010789,2]
[346625792,1735129847046,-501.09755772,0.00010789,2]
[346625794,1735129847056,-500.0,0.00010789,2]
[346625796,1735129847065,-307.88048358,0.00010789,2]
[346625826,1735129847291,-187.45557787,0.00010789,2]
[346625830,1735129847367,-500.0,0.00010789,2]
[346625832,1735129847377,-500.0,0.00010789,2]
[346625834,1735129847386,-500.0,0.00010789,2]
[346625836,1735129847395,-500.0,0.00010789,2]
[346625838,1735129847404,-500.0,0.00010789,2]
[346625840,1735129847413,-500.0,0.00010789,2]
[346625842,1735129847422,-500.0,0.00010789,2]
[346625844,1735129847431,-500.0,0.00010789,2]
[346625846,1735129847440,-500.0,0.00010789,2]
[346625848,1735129847449,-500.0,0.00010789,2]
[346625850,1735129847459,-500.0,0.00010789,2]
[346625852,1735129847468,-500.0,0.00010789,2]
[346625854,1735129847477,-500.0,0.00010789,2]
[346625857,1735129847487,-500.0,0.00010789,2]
[346625858,1735129847496,-500.0,0.00010789,2]
[346625860,1735129847506,-500.0,0.00010789,2]
[346625862,1735129847516,-500.0,0.00010789,2]
[346625865,1735129847526,-500.0,0.00010789,2]
[346625867,1735129847535,-500.0,0.00010789,2]
[346625869,1735129847544,-500.0,0.00010789,2]
[346625870,1735129847555,-500.0,0.00010789,2]
[346625873,1735129847566,-500.0,0.00010789,2]
[346625875,1735129847575,-500.0,0.00010789,2]
[346625877,1735129847584,-501.06727096,0.00010789,2]
[346625879,1735129847595,-500.0,0.00010789,2]
[346625881,1735129847604,-500.0,0.00010789,2]
[346625883,1735129847614,-500.0,0.00010789,2]
[346625885,1735129847624,-500.0,0.00010789,2]
[346625887,1735129847635,-500.0,0.00010789,2]
[346625889,1735129847645,-500.0,0.00010789,2]
[346625891,1735129847654,-500.0,0.00010789,2]
[346625893,1735129847663,-500.0,0.00010789,2]
[346625895,1735129847672,-500.0,0.00010789,2]
[346625897,1735129847681,-500.0,0.00010789,2]
[346625899,1735129847690,-500.0,0.00010789,2]
[346625901,1735129847699,-500.0,0.00010789,2]
[346625903,1735129847708,-500.0,0.00010789,2]
[346625905,1735129847717,-500.0,0.00010789,2]
[346625907,1735129847726,-500.0,0.00010789,2]
[346625909,1735129847736,-500.0,0.00010789,2]
[346625911,1735129847745,-500.0,0.00010789,2]
[346625913,1735129847754,-500.0,0.00010789,2]
[346625915,1735129847764,-500.0,0.00010789,2]
[346625917,1735129847773,-1153.80103571,0.00010789,2]
[346625958,1735129848148,-237.96896429,0.00010789,2]
[346625960,1735129848158,-500.0,0.00010789,2]
[346625962,1735129848168,-500.0,0.00010789,2]
[346625964,1735129848177,-500.0,0.00010789,2]
[346625966,1735129848187,-500.0,0.00010789,2]
[346625968,1735129848196,-500.0,0.00010789,2]
[346625970,1735129848206,-500.0,0.00010789,2]
[346625972,1735129848216,-500.0,0.00010789,2]
[346625974,1735129848226,-500.0,0.00010789,2]
[346625976,1735129848235,-500.0,0.00010789,2]
[346625978,1735129848245,-500.0,0.00010789,2]
[346625980,1735129848255,-500.0,0.00010789,2]
[346625982,1735129848265,-500.0,0.00010789,2]
[346625984,1735129848275,-500.0,0.00010789,2]
[346625986,1735129848288,-500.0,0.00010789,2]
[346625988,1735129848297,-500.0,0.00010789,2]
[346625989,1735129848307,-500.0,0.00010789,2]
[346625990,1735129848317,-500.0,0.00010789,2]
[346625991,1735129848328,-500.0,0.00010789,2]
[346625992,1735129848338,-500.0,0.00010789,2]
[346625993,1735129848348,-500.0,0.00010789,2]
[346625994,1735129848358,-500.0,0.00010789,2]
[346625995,1735129848367,-500.0,0.00010789,2]
[346625996,1735129848377,-505.87444751,0.00010789,2]
[346625997,1735129848387,-500.0,0.00010789,2]
[346625998,1735129848397,-500.0,0.00010789,2]
[346625999,1735129848407,-500.0,0.00010789,2]
[346626001,1735129848417,-500.0,0.00010789,2]
[346626002,1735129848427,-500.0,0.00010789,2]
[346626004,1735129848437,-500.0,0.00010789,2]
[346626006,1735129848446,-500.0,0.00010789,2]
[346626009,1735129848456,-500.0,0.00010789,2]
[346626011,1735129848466,-500.0,0.00010789,2]
[346626013,1735129848476,-500.0,0.00010789,2]
[346626015,1735129848485,-500.0,0.00010789,2]
[346626017,1735129848495,-500.0,0.00010789,2]
[346626019,1735129848504,-500.0,0.00010789,2]
[346626021,1735129848515,-500.0,0.00010789,2]
[346626023,1735129848525,-150.0,0.00010789,2]
[346626025,1735129848535,-500.0,0.00010789,2]
[346626027,1735129848544,-5000.0,0.00010789,2]
[346626029,1735129848555,-500.0,0.00010789,2]
[346626031,1735129848566,-500.0,0.00010789,2]
[346626033,1735129848576,-500.0,0.00010789,2]
[346626035,1735129848586,-500.0,0.00010789,2]
[346626037,1735129848596,-500.0,0.00010789,2]
[346626039,1735129848606,-500.0,0.00010789,2]
[346626041,1735129848616,-500.0,0.00010789,2]
[346626043,1735129848625,-500.0,0.00010789,2]
[346626045,1735129848635,-500.0,0.00010789,2]
[346626047,1735129848646,-500.0,0.00010789,2]
[346626049,1735129848655,-500.0,0.00010789,2]
[346626051,1735129848665,-500.0,0.00010789,2]
[346626053,1735129848675,-500.0,0.00010789,2]
[346626054,1735129848684,-500.0,0.00010789,2]
[346626057,1735129848694,-500.0,0.00010789,2]
[346626059,1735129848703,-500.0,0.00010789,2]
[346626061,1735129848712,-500.0,0.00010789,2]
[346626062,1735129848723,-500.0,0.00010789,2]
[346626064,1735129848732,-500.0,0.00010789,2]
[346626066,1735129848742,-577.5,0.00010789,2]
[346626068,1735129848751,-500.0,0.00010789,2]
[346626070,1735129848762,-500.0,0.00010789,2]
[346626072,1735129848772,-500.0,0.00010789,2]
[346626074,1735129848781,-500.0,0.00010789,2]
[346626076,1735129848791,-500.0,0.00010789,2]
[346626078,1735129848800,-500.0,0.00010789,2]
[346626080,1735129848810,-500.0,0.00010789,2]
[346626082,1735129848819,-500.0,0.00010789,2]
[346626084,1735129848828,-500.0,0.00010789,2]
[346626086,1735129848838,-500.0,0.00010789,2]
[346626088,1735129848847,-500.0,0.00010789,2]
[346626090,1735129848857,-500.0,0.00010789,2]
[346626092,1735129848868,-1000.0,0.00010802,2]
[346626094,1735129848877,-420.0,0.00010833,2]
[346626096,1735129848887,-2200.0,0.00010876,2]
[346626098,1735129848896,-178.68471891,0.000109,2]
[346626100,1735129848906,-150.0,0.00010959,2]
[346626102,1735129848915,-5625.73,0.00010959,2]
[346626104,1735129848924,-815.53,0.00010959,2]
[346626106,1735129848935,-575.43,0.00010961,2]
[346626108,1735129848944,-500.0,0.00010962,2]
[346626110,1735129848954,-500.0,0.00010962,2]
[346626113,1735129848963,-500.0,0.00010962,2]
[346626115,1735129848973,-500.0,0.00010962,2]
[346626117,1735129848983,-295.67487404,0.00010962,2]
[346626119,1735129848994,-500.0,0.00010962,2]
[346626121,1735129849003,-500.0,0.00010962,2]
[346626123,1735129849015,-500.0,0.00010962,2]
[346626124,1735129849025,-500.0,0.00010962,2]
[346626127,1735129849037,-500.0,0.00010962,2]
[346626129,1735129849047,-500.0,0.00010962,2]
[346626131,1735129849056,-500.0,0.00010962,2]
[346626133,1735129849066,-500.0,0.00010962,2]
[346626135,1735129849075,-500.0,0.00010962,2]
[346626137,1735129849085,-500.0,0.00010962,2]
[346626139,1735129849095,-500.0,0.00010962,2]
[346626141,1735129849104,-500.0,0.00010962,2]
[346626143,1735129849113,-500.0,0.00010962,2]
[346626145,1735129849123,-500.0,0.00010962,2]
[346626147,1735129849132,-500.0,0.00010962,2]
[346626149,1735129849141,-500.0,0.00010962,2]
[346626151,1735129849150,-500.0,0.00010962,2]
[346626153,1735129849160,-500.0,0.00010962,2]
[346626155,1735129849170,-500.0,0.00010962,2]
[346626157,1735129849180,-500.0,0.00010962,2]
[346626159,1735129849190,-500.0,0.00010962,2]
[346626161,1735129849199,-500.0,0.00010962,2]
[346626163,1735129849209,-500.0,0.00010962,2]
[346626165,1735129849218,-500.0,0.00010962,2]
[346626167,1735129849228,-500.0,0.00010962,2]
[346626169,1735129849238,-500.0,0.00010962,2]
[346626171,1735129849248,-500.78837733,0.00010962,2]
[346626173,1735129849258,-500.0,0.00010962,2]
[346626175,1735129849267,-500.0,0.00010962,2]
[346626177,1735129849277,-500.0,0.00010962,2]
[346626179,1735129849286,-500.0,0.00010962,2]